lending/lending_fUSD_20240507
["ID","MTS","AMOUNT","RATE_DAILY","PERIOD"]
[326578790,1715116256480,-500.0,0.00019452,2]
[326578792,1715116256491,-500.0,0.00019452,2]
[326578794,1715116256501,-500.0,0.00019452,2]
[326578796,1715116256511,-500.0,0.00019452,2]
[326578797,1715116256521,-500.0,0.00019452,2]
[326578799,1715116256531,-500.0,0.00019452,2]
[326578801,1715116256543,-500.0,0.00019452,2]
[326578803,1715116256553,-500.0,0.00019452,2]
[326578805,1715116256564,-500.0,0.00019452,2]
[326578806,1715116256576,-500.0,0.00019452,2]
[326578808,1715116256586,-500.0,0.00019452,2]
[326578810,1715116256597,-500.0,0.00019452,2]
[326578812,1715116256608,-312.74,0.00019452,2]
[326578814,1715116256619,-500.0,0.00019452,2]
[326578816,1715116256629,-500.0,0.00019452,2]
[326578817,1715116256639,-500.0,0.00019452,2]
[326578819,1715116256648,-500.0,0.00019452,2]
[326578821,1715116256659,-500.0,0.00019452,2]
[326578823,1715116256668,-500.0,0.00019452,2]
[326578824,1715116256679,-500.0,0.00019452,2]
[326578826,1715116256689,-500.0,0.00019452,2]
[326578828,1715116256699,-500.0,0.00019452,2]
[326578830,1715116256710,-902.68,0.00019452,2]
[326578832,1715116256720,-500.0,0.00019452,2]
[326578834,1715116256730,-500.0,0.00019452,2]
[326578835,1715116256740,-290.56,0.00019452,2]
[326578837,1715116256751,-500.0,0.00019452,2]
[326578839,1715116256761,-500.0,0.00019452,2]
[326578841,1715116256771,-500.0,0.00019452,2]
[326578843,1715116256782,-500.0,0.00019452,2]
[326578845,1715116256792,-500.0,0.00019452,2]
[326578847,1715116256803,-500.0,0.00019452,2]
[326578849,1715116256813,-500.0,0.00019452,2]
[326578851,1715116256823,-500.0,0.00019452,2]
[326578853,1715116256839,-500.0,0.00019452,2]
[326578856,1715116256849,-287.357776,0.00019452,2]
[326578857,1715116256859,-382.44,0.00019452,2]
[326578860,1715116256869,-500.0,0.00019452,2]
[326578862,1715116256881,-355.8,0.00019452,2]
[326578864,1715116256891,-500.0,0.00019452,2]
[326578865,1715116256903,-500.0,0.00019452,2]
[326578867,1715116256914,-151.0,0.00019452,2]
[326578869,1715116256924,-500.0,0.00019452,2]
[326578871,1715116256935,-500.0,0.00019452,2]
[326578873,1715116256945,-500.0,0.00019452,2]
[326578876,1715116256957,-500.0,0.00019452,2]
[326578878,1715116256967,-500.0,0.00019452,2]
[326578880,1715116256977,-500.0,0.00019452,2]
[326578882,1715116256988,-500.0,0.00019452,2]
[326578884,1715116256999,-500.0,0.00019452,2]
[326578886,1715116257009,-500.0,0.00019452,2]
[326578888,1715116257020,-521.62,0.00019452,2]
[326578890,1715116257031,-500.0,0.00019452,2]
[326578892,1715116257042,-500.0,0.00019452,2]
[326578894,1715116257052,-296.38,0.00019452,2]
[326578896,1715116257063,-539.96,0.00019452,2]
[326578898,1715116257073,-151.0,0.00019452,2]
[326578900,1715116257083,-500.0,0.00019452,2]
[326578902,1715116257094,-500.0,0.00019452,2]
[326578904,1715116257103,-254.17,0.00019452,2]
[326578906,1715116257113,-239.8,0.00019452,2]
[326578908,1715116257124,-500.0,0.00019452,2]
[326578910,1715116257134,-151.0,0.00019452,2]
[326578912,1715116257145,-500.0,0.00019452,2]
[326578913,1715116257155,-412.25,0.00019452,2]
[326578914,1715116257166,-500.0,0.00019452,2]
[326578915,1715116257176,-500.0,0.00019452,2]
[326578916,1715116257187,-151.0,0.00019452,2]
[326578917,1715116257197,-151.0,0.00019452,2]
[326578918,1715116257208,-500.0,0.00019452,2]
[326578919,1715116257218,-151.0,0.00019452,2]
[326578920,1715116257228,-500.0,0.00019452,2]
[326578921,1715116257239,-152.23,0.00019452,2]
[326578922,1715116257249,-529.09,0.00019452,2]
[326578923,1715116257260,-500.0,0.00019452,2]
[326578924,1715116257270,-500.0,0.00019452,2]
[326578925,1715116257281,-551.88,0.00019452,2]
[326578926,1715116257291,-500.0,0.00019452,2]
[326578927,1715116257301,-500.0,0.00019452,2]
[326578928,1715116257311,-500.0,0.00019452,2]
[326578929,1715116257322,-282.88,0.00019452,2]
[326578930,1715116257332,-158.77,0.00019452,2]
[326578931,1715116257342,-500.0,0.00019452,2]
[326578933,1715116257353,-500.0,0.00019452,2]
[326578934,1715116257363,-500.0,0.00019452,2]
[326578936,1715116257377,-310.93,0.00019452,2]
[326578938,1715116257387,-262.24,0.00019452,2]
[326578940,1715116257398,-500.0,0.00019452,2]
[326578942,1715116257409,-500.0,0.00019452,2]
[326578944,1715116257419,-500.0,0.00019452,2]
[326578946,1715116257430,-500.0,0.00019452,2]
[326578948,1715116257440,-500.0,0.00019452,2]
[326578950,1715116257451,-500.0,0.00019452,2]
[326578952,1715116257463,-500.0,0.00019452,2]
[326578954,1715116257474,-498.9544624,0.00019452,2]
[326578956,1715116257485,-500.0,0.00019452,2]
[326578958,1715116257495,-500.0,0.00019452,2]
[326578960,1715116257506,-500.0,0.00019452,2]
[326578962,1715116257517,-500.0,0.00019452,2]
[326578964,1715116257527,-264.43893425,0.00019452,2]
[326578966,1715116257538,-500.0,0.00019452,2]
[326578967,1715116257548,-500.0,0.00019452,2]
[326578969,1715116257558,-500.0,0.00019452,2]
[326578971,1715116257569,-500.0,0.00019452,2]
[326578974,1715116257580,-371.54,0.00019452,2]
[326578976,1715116257596,-500.0,0.00019452,2]
[326578978,1715116257607,-422.68,0.00019452,2]
[326578980,1715116257618,-500.0,0.00019452,2]
[326578982,1715116257629,-515.99,0.00019452,2]
[326578984,1715116257640,-500.0,0.00019452,2]
[326578986,1715116257651,-336.64,0.00019452,2]
[326578988,1715116257662,-500.0,0.00019452,2]
[326579005,1715116257839,-283.264101,0.00019452,2]
[326579007,1715116257850,-500.0,0.00019452,2]
[326579009,1715116257861,-380.8,0.00019452,2]
[326579011,1715116257872,-500.0,0.00019452,2]
[326579012,1715116257884,-500.0,0.00019452,2]
[326579013,1715116257896,-151.0,0.00019452,2]
[326579014,1715116257908,-265.71,0.00019452,2]
[326579015,1715116257919,-500.0,0.00019452,2]
[326579016,1715116257930,-226.45,0.00019452,2]
[326579017,1715116257940,-500.0,0.00019452,2]
[326579018,1715116257951,-500.0,0.00019452,2]
[326579019,1715116257962,-500.0,0.00019452,2]
[326579020,1715116257972,-500.0,0.00019452,2]
[326579021,1715116257983,-232.57,0.00019452,2]
[326579022,1715116257993,-500.0,0.00019452,2]
[326579023,1715116258005,-528.48,0.00019452,2]
[326579024,1715116258016,-500.0,0.00019452,2]
[326579025,1715116258028,-500.0,0.00019452,2]
[326579026,1715116258038,-151.0,0.00019452,2]
[326579027,1715116258048,-500.0,0.00019452,2]
[326579028,1715116258059,-500.0,0.00019452,2]
[326579029,1715116258070,-355.02,0.00019452,2]
[326579030,1715116258081,-151.0,0.00019452,2]
[326579031,1715116258091,-500.0,0.00019452,2]
[326579033,1715116258101,-500.0,0.00019452,2]
[326579035,1715116258112,-500.0,0.00019452,2]
[326579036,1715116258122,-500.0,0.00019452,2]
[326579037,1715116258132,-500.0,0.00019452,2]
[326579038,1715116258142,-500.0,0.00019452,2]
[326579039,1715116258153,-641.75,0.00019452,2]
[326579040,1715116258163,-500.0,0.00019452,2]
[326579041,1715116258173,-153.0,0.00019452,2]
[326579042,1715116258183,-500.0,0.00019452,2]
[326579043,1715116258194,-500.0,0.00019452,2]
[326579044,1715116258204,-164.69,0.00019452,2]
[326579045,1715116258214,-698.76,0.00019452,2]
[326579046,1715116258224,-500.0,0.00019452,2]
[326579047,1715116258234,-500.0,0.00019452,2]
[326579048,1715116258244,-500.0,0.00019452,2]
[326579049,1715116258256,-500.0,0.00019452,2]
[326579050,1715116258267,-500.0,0.00019452,2]
[326579051,1715116258277,-151.0,0.00019452,2]
[326579052,1715116258287,-152.778259,0.00019452,2]
[326579053,1715116258297,-5824.25,0.00019452,2]
[326579054,1715116258307,-459.48996372,0.00019452,2]
[326579055,1715116258317,-500.0,0.00019452,2]
[326579056,1715116258327,-500.0,0.00019452,2]
[326579057,1715116258338,-500.0,0.00019452,2]
[326579058,1715116258348,-500.0,0.00019452,2]
[326579059,1715116258357,-500.0,0.00019452,2]
[326579060,1715116258369,-500.0,0.00019452,2]
[326579061,1715116258379,-601.03,0.00019452,2]
[326579062,1715116258390,-500.0,0.00019452,2]
[326579063,1715116258400,-500.0,0.00019452,2]
[326579064,1715116258410,-520.98,0.00019452,2]
[326579065,1715116258420,-500.0,0.00019452,2]
[326579066,1715116258430,-151.0,0.00019452,2]
[326579067,1715116258440,-664.01,0.00019452,2]
[326579068,1715116258450,-500.0,0.00019452,2]
[326579069,1715116258460,-151.0,0.00019452,2]
[326579070,1715116258470,-500.0,0.00019452,2]
[326579071,1715116258481,-151.0,0.00019452,2]
[326579072,1715116258491,-500.0,0.00019452,2]
[326579073,1715116258500,-299.33,0.00019452,2]
[326579074,1715116258510,-500.0,0.00019452,2]
[326579075,1715116258520,-151.0,0.00019452,2]
[326579076,1715116258530,-500.0,0.00019452,2]
[326579077,1715116258540,-500.0,0.00019452,2]
[326579078,1715116258551,-500.0,0.00019452,2]
[326579079,1715116258561,-500.0,0.00019452,2]
[326579080,1715116258571,-701.0,0.00019452,2]
[326579081,1715116258581,-151.0,0.00019452,2]
[326579082,1715116258591,-500.0,0.00019452,2]
[326579083,1715116258602,-500.0,0.00019452,2]
[326579084,1715116258612,-681.84,0.00019452,2]
[326579085,1715116258622,-500.0,0.00019452,2]
[326579086,1715116258633,-500.0,0.00019452,2]
[326579087,1715116258645,-500.0,0.00019452,2]
[326579088,1715116258656,-500.0,0.00019452,2]
[326579089,1715116258669,-500.0,0.00019452,2]
[326579090,1715116258680,-500.0,0.00019452,2]
[326579091,1715116258691,-625.31,0.00019452,2]
[326579092,1715116258703,-205.47,0.00019452,2]
[326579093,1715116258716,-500.0,0.00019452,2]
[326579094,1715116258726,-151.0,0.00019452,2]
[326579095,1715116258738,-500.0,0.00019452,2]
[326579096,1715116258749,-500.0,0.00019452,2]
[326579097,1715116258759,-500.0,0.00019452,2]
[326579098,1715116258770,-225.62,0.00019452,2]
[326579099,1715116258781,-500.0,0.00019452,2]
[326579100,1715116258792,-500.0,0.00019452,2]
[326579101,1715116258803,-500.0,0.00019452,2]
[326579102,1715116258813,-500.0,0.00019452,2]
[326579103,1715116258824,-156.21,0.00019452,2]
[326579104,1715116258838,-500.0,0.00019452,2]
[326579105,1715116258849,-560.9,0.00019452,2]
[326579106,1715116258859,-500.0,0.00019452,2]
[326579107,1715116258869,-242.78680314,0.00019452,2]
[326579108,1715116258881,-500.0,0.00019452,2]
[326579109,1715116258892,-500.0,0.00019452,2]
[326579111,1715116258904,-382.22,0.00019452,2]
[326579113,1715116258915,-500.0,0.00019452,2]
[326579115,1715116258925,-156.494903,0.00019452,2]
[326579117,1715116258936,-500.0,0.00019452,2]
[326579119,1715116258946,-500.0,0.00019452,2]
[326579121,1715116258956,-1530.09,0.00019452,2]
[326579123,1715116258967,-500.0,0.00019452,2]
[326579125,1715116258977,-500.0,0.00019452,2]
[326579127,1715116258987,-500.0,0.00019452,2]
[326579129,1715116258997,-500.0,0.00019452,2]
[326579131,1715116259007,-1240.89,0.00019452,2]
[326579133,1715116259018,-500.0,0.00019452,2]
[326579135,1715116259029,-500.0,0.00019452,2]
[326579137,1715116259039,-500.0,0.00019452,2]
[326579139,1715116259049,-500.0,0.00019452,2]
[326579141,1715116259059,-500.0,0.00019452,2]
[326579143,1715116259069,-500.0,0.00019452,2]
[326579145,1715116259080,-151.0,0.00019452,2]
[326579147,1715116259089,-500.0,0.00019452,2]
[326579149,1715116259099,-500.0,0.00019452,2]
[326579151,1715116259109,-1524.04,0.00019452,2]
[326579153,1715116259119,-500.0,0.00019452,2]
[326579155,1715116259129,-644.86,0.00019452,2]
[326579157,1715116259139,-500.0,0.00019452,2]
[326579159,1715116259149,-581.92329761,0.00019452,2]
[326579161,1715116259160,-5042.93,0.00019452,2]
[326579163,1715116259171,-151.0,0.00019452,2]
[326579165,1715116259181,-151.0,0.00019452,2]
[326579167,1715116259192,-500.0,0.00019452,2]
[326579169,1715116259204,-633.32,0.00019452,2]
[326579171,1715116259216,-151.0,0.00019452,2]
[326579173,1715116259226,-500.0,0.00019452,2]
[326579175,1715116259236,-2029.86,0.00019452,2]
[326579177,1715116259247,-596.24,0.00019452,2]
[326579179,1715116259257,-151.0,0.00019452,2]
[326579181,1715116259268,-684.17,0.00019452,2]
[326579183,1715116259280,-151.0,0.00019452,2]
[326579185,1715116259290,-1243.79,0.00019452,2]
[326579187,1715116259300,-500.0,0.00019452,2]
[326579190,1715116259312,-500.0,0.00019452,2]
[326579191,1715116259322,-151.0,0.00019452,2]
[326579193,1715116259332,-500.0,0.00019452,2]
[326579195,1715116259342,-2732.29,0.00019452,2]
[326579197,1715116259352,-658.76,0.00019452,2]
[326579199,1715116259363,-859.21,0.00019452,2]
[326579201,1715116259377,-500.0,0.00019452,2]
[326579204,1715116259387,-558.57,0.00019452,2]
[326579206,1715116259396,-2017.79,0.00019452,2]
[326579208,1715116259407,-151.0,0.00019452,2]
[326579209,1715116259417,-664.22,0.00019452,2]
[326579211,1715116259428,-500.0,0.00019452,2]
[326579213,1715116259438,-151.0,0.00019452,2]
[326579215,1715116259448,-500.0,0.00019452,2]
[326579217,1715116259458,-500.0,0.00019452,2]
[326579219,1715116259468,-500.0,0.00019452,2]
[326579221,1715116259478,-151.0,0.00019452,2]
[326579224,1715116259488,-500.0,0.00019452,2]
[326579226,1715116259500,-500.0,0.00019452,2]
[326579227,1715116259510,-500.0,0.00019452,2]
[326579229,1715116259521,-151.0,0.00019452,2]
[326579231,1715116259532,-711.2,0.00019452,2]
[326579233,1715116259543,-576.12,0.00019452,2]
[326579236,1715116259553,-232.36006,0.00019452,2]
[326579238,1715116259563,-500.0,0.00019452,2]
[326579239,1715116259573,-500.0,0.00019452,2]
[326579241,1715116259583,-151.0,0.00019452,2]
[326579243,1715116259593,-3691.57,0.00019452,2]
[326579246,1715116259604,-693.02,0.00019452,2]
[326579247,1715116259614,-232.36006,0.00019452,2]
[326579250,1715116259624,-644.14,0.00019452,2]
[326579251,1715116259634,-174.3,0.00019452,2]
[326579253,1715116259644,-1359.85,0.00019452,2]
[326579255,1715116259654,-500.0,0.00019452,2]
[326579257,1715116259664,-500.0,0.00019452,2]
[326579259,1715116259674,-692.31,0.00019452,2]
[326579261,1715116259683,-151.0,0.00019452,2]
[326579263,1715116259693,-151.0,0.00019452,2]
[326579265,1715116259703,-500.0,0.00019452,2]
[326579267,1715116259714,-151.0,0.00019452,2]
[326579269,1715116259725,-500.0,0.00019452,2]
[326579272,1715116259736,-151.0,0.00019452,2]
[326579273,1715116259747,-480.31,0.00019452,2]
[326579274,1715116259758,-215.46,0.00019452,2]
[326579275,1715116259768,-500.0,0.00019452,2]
[326579276,1715116259779,-547.78,0.00019452,2]
[326579277,1715116259790,-500.0,0.00019452,2]
[326579278,1715116259800,-500.0,0.00019452,2]
[326579279,1715116259811,-3284.08,0.00019452,2]
[326579280,1715116259821,-500.0,0.00019452,2]
[326579281,1715116259836,-500.0,0.00019452,2]
[326579282,1715116259846,-500.0,0.00019452,2]
[326579283,1715116259857,-151.0,0.00019452,2]
[326579284,1715116259868,-565.83,0.00019452,2]
[326579285,1715116259879,-923.1,0.00019452,2]
[326579286,1715116259889,-564.63,0.00019452,2]
[326579287,1715116259900,-500.0,0.00019452,2]
[326579288,1715116259913,-500.0,0.00019452,2]
[326579289,1715116259923,-500.0,0.00019452,2]
[326579290,1715116259934,-500.0,0.00019452,2]
[326579291,1715116259944,-1065.91,0.00019452,2]
[326579292,1715116259955,-500.0,0.00019452,2]
[326579293,1715116259965,-790.45,0.00019452,2]
[326579294,1715116259974,-500.0,0.00019452,2]
[326579295,1715116259984,-151.0,0.00019452,2]
[326579296,1715116259995,-500.0,0.00019452,2]
[326579297,1715116260006,-1276.41,0.00019452,2]
[326579298,1715116260016,-500.0,0.00019452,2]
[326579299,1715116260026,-986.6,0.00019452,2]
[326579300,1715116260036,-500.0,0.00019452,2]
[326579301,1715116260047,-500.0,0.00019452,2]
[326579302,1715116260057,-151.0,0.00019452,2]
[326579303,1715116260069,-500.0,0.00019452,2]
[326579304,1715116260080,-541.48,0.00019452,2]
[326579305,1715116260091,-500.0,0.00019452,2]
[326579306,1715116260102,-500.0,0.00019452,2]
[326579307,1715116260113,-500.0,0.00019452,2]
[326579308,1715116260123,-500.0,0.00019452,2]
[326579309,1715116260134,-151.0,0.00019452,2]
[326579310,1715116260145,-500.0,0.00019452,2]
[326579311,1715116260155,-607.24,0.00019452,2]
[326579312,1715116260165,-151.0,0.00019452,2]
[326579313,1715116260175,-500.0,0.00019452,2]
[326579314,1715116260186,-1207.16,0.00019452,2]
[326579315,1715116260196,-500.0,0.00019452,2]
[326579316,1715116260207,-500.0,0.00019452,2]
[326579317,1715116260219,-500.0,0.00019452,2]
[326579318,1715116260230,-533.07,0.00019452,2]
[326579319,1715116260241,-500.0,0.00019452,2]
[326579320,1715116260253,-151.0,0.00019452,2]
[326579321,1715116260263,-500.0,0.00019452,2]
[326579322,1715116260273,-617.79,0.00019452,2]
[326579323,1715116260286,-500.0,0.00019452,2]
[326579324,1715116260298,-500.0,0.00019452,2]
[326579325,1715116260308,-847.88,0.00019452,2]
[326579326,1715116260319,-500.0,0.00019452,2]
[326579327,1715116260376,-500.0,0.00019452,2]
[326579328,1715116260387,-500.0,0.00019452,2]
[326579329,1715116260398,-736.73,0.00019452,2]
[326579330,1715116260408,-160.41,0.00019452,2]
[326579331,1715116260419,-500.0,0.00019452,2]
[326579332,1715116260430,-500.0,0.00019452,2]
[326579333,1715116260440,-500.0,0.00019452,2]
[326579334,1715116260450,-500.0,0.00019452,2]
[326579335,1715116260461,-500.0,0.00019452,2]
[326579336,1715116260471,-568.79,0.00019452,2]
[326579337,1715116260482,-500.0,0.00019452,2]
[326579338,1715116260494,-996.11,0.00019452,2]
[326579339,1715116260505,-500.0,0.00019452,2]
[326579340,1715116260515,-500.0,0.00019452,2]
[326579341,1715116260528,-500.0,0.00019452,2]
[326579342,1715116260540,-151.0,0.00019452,2]
[326579343,1715116260551,-500.0,0.00019452,2]
[326579344,1715116260561,-500.0,0.00019452,2]
[326579345,1715116260572,-939.79,0.00019452,2]
[326579346,1715116260583,-2274.89,0.00019452,2]
[326579347,1715116260593,-233.53,0.00019452,2]
[326579348,1715116260602,-500.0,0.00019452,2]
[326579349,1715116260612,-151.0,0.00019452,2]
[326579350,1715116260622,-547.69,0.00019452,2]
[326579351,1715116260632,-151.0,0.00019452,2]
[326579352,1715116260642,-500.0,0.00019452,2]
[326579353,1715116260652,-500.0,0.00019452,2]
[326579354,1715116260662,-500.0,0.00019452,2]
[326579355,1715116260672,-500.0,0.00019452,2]
[326579356,1715116260682,-1726.63,0.00019452,2]
[326579357,1715116260691,-500.0,0.00019452,2]
[326579358,1715116260701,-500.0,0.00019452,2]
[326579359,1715116260711,-151.379386,0.00019452,2]
[326579360,1715116260720,-841.06,0.00019452,2]
[326579361,1715116260731,-307.196537,0.00019452,2]
[326579362,1715116260741,-500.0,0.00019452,2]
[326579363,1715116260751,-1393.26,0.00019452,2]
[326579364,1715116260761,-1516.8,0.00019452,2]
[326579365,1715116260771,-151.0,0.00019452,2]
[326579366,1715116260783,-307.196537,0.00019452,2]
[326579367,1715116260793,-1128.38,0.00019452,2]
[326579368,1715116260804,-730.82,0.00019452,2]
[326579369,1715116260814,-151.0,0.00019452,2]
[326579370,1715116260823,-576.08,0.00019452,2]
[326579371,1715116260839,-500.0,0.00019452,2]
[326579372,1715116260849,-500.0,0.00019452,2]
[326579373,1715116260859,-151.0,0.00019452,2]
[326579374,1715116260869,-151.0,0.00019452,2]
[326579375,1715116260880,-500.0,0.00019452,2]
[326579376,1715116260890,-500.0,0.00019452,2]
[326579377,1715116260900,-500.0,0.00019452,2]
[326579378,1715116260912,-364.98,0.00019452,2]
[326579379,1715116260924,-702.7,0.00019452,2]
[326579380,1715116260934,-582.78,0.00019452,2]
[326579381,1715116260945,-500.0,0.00019452,2]
[326579382,1715116260955,-500.0,0.00019452,2]
[326579383,1715116260966,-500.0,0.00019452,2]
[326579384,1715116260976,-846.66,0.00019452,2]
[326579385,1715116260987,-7271.32,0.00019452,2]
[326579386,1715116260997,-151.0,0.00019452,2]
[326579387,1715116261008,-500.0,0.00019452,2]
[326579388,1715116261018,-500.0,0.00019452,2]
[326579389,1715116261029,-500.0,0.00019452,2]
[326579390,1715116261039,-959.96,0.00019452,2]
[326579391,1715116261049,-151.0,0.00019452,2]
[326579392,1715116261059,-500.0,0.00019452,2]
[326579393,1715116261070,-500.0,0.00019452,2]
[326579394,1715116261080,-928.0,0.00019452,2]
[326579395,1715116261090,-500.0,0.00019452,2]
[326579396,1715116261101,-500.0,0.00019452,2]
[326579397,1715116261111,-550.3,0.00019452,2]
[326579398,1715116261122,-151.0,0.00019452,2]
[326579399,1715116261133,-151.0,0.00019452,2]
[326579400,1715116261143,-1314.25,0.00019452,2]
[326579401,1715116261154,-416.71,0.00019452,2]
[326579402,1715116261164,-286.6,0.00019452,2]
[326579403,1715116261175,-500.0,0.00019452,2]
[326579404,1715116261186,-535.14,0.00019452,2]
[326579405,1715116261198,-698.89,0.00019452,2]
[326579406,1715116261209,-369.77,0.00019452,2]
[326579407,1715116261220,-500.0,0.00019452,2]
[326579408,1715116261231,-570.32,0.00019452,2]
[326579409,1715116261241,-681.48,0.00019452,2]
[326579410,1715116261252,-500.0,0.00019452,2]
[326579411,1715116261263,-500.0,0.00019452,2]
[326579412,1715116261272,-364.52,0.00019452,2]
[326579413,1715116261285,-500.0,0.00019452,2]
[326579414,1715116261295,-500.0,0.00019452,2]
[326579415,1715116261305,-529.68,0.00019452,2]
[326579416,1715116261316,-5182.99,0.00019452,2]
[326579417,1715116261327,-500.0,0.00019452,2]
[326579418,1715116261337,-500.0,0.00019452,2]
[326579419,1715116261349,-261.65,0.00019452,2]
[326579420,1715116261359,-500.0,0.00019452,2]
[326579421,1715116261372,-500.0,0.00019452,2]
[326579422,1715116261382,-1427.16,0.00019452,2]
[326579423,1715116261392,-500.0,0.00019452,2]
[326579424,1715116261402,-500.0,0.00019452,2]
[326579425,1715116261413,-500.0,0.00019452,2]
[326579426,1715116261423,-500.0,0.00019452,2]
[326579427,1715116261435,-570.82,0.00019452,2]
[326579428,1715116261445,-500.0,0.00019452,2]
[326579429,1715116261455,-151.0,0.00019452,2]
[326579430,1715116261464,-500.0,0.00019452,2]
[326579431,1715116261475,-500.0,0.00019452,2]
[326579432,1715116261485,-696.71,0.00019452,2]
[326579433,1715116261495,-151.0,0.00019452,2]
[326579434,1715116261506,-500.0,0.00019452,2]
[326579435,1715116261517,-151.0,0.00019452,2]
[326579436,1715116261527,-640.06,0.00019452,2]
[326579437,1715116261537,-151.0,0.00019452,2]
[326579438,1715116261547,-500.0,0.00019452,2]
[326579439,1715116261557,-590.11,0.00019452,2]
[326579440,1715116261568,-1097.83,0.00019452,2]
[326579441,1715116261578,-766.14,0.00019452,2]
[326579442,1715116261588,-151.0,0.00019452,2]
[326579443,1715116261598,-500.0,0.00019452,2]
[326579444,1715116261609,-500.0,0.00019452,2]
[326579445,1715116261619,-500.0,0.00019452,2]
[326579446,1715116261629,-500.0,0.00019452,2]
[326579447,1715116261639,-500.0,0.00019452,2]
[326579448,1715116261649,-500.0,0.00019452,2]
[326579449,1715116261660,-500.0,0.00019452,2]
[326579450,1715116261670,-1381.85,0.00019452,2]
[326579451,1715116261680,-500.0,0.00019452,2]
[326579452,1715116261690,-500.0,0.00019452,2]
[326579453,1715116261700,-500.0,0.00019452,2]
[326579454,1715116261710,-500.0,0.00019452,2]
[326579455,1715116261720,-500.0,0.00019452,2]
[326579456,1715116261731,-151.0,0.00019452,2]
[326579457,1715116261743,-500.0,0.00019452,2]
[326579458,1715116261754,-500.0,0.00019452,2]
[326579459,1715116261764,-640.61,0.00019452,2]
[326579460,1715116261775,-151.0,0.00019452,2]
[326579461,1715116261785,-1251.23,0.00019452,2]
[326579462,1715116261795,-166.023356,0.00019452,2]
[326579463,1715116261806,-152.71864665,0.000195,2]
[326579464,1715116261816,-334.0,0.0001956,15]
[326579465,1715116261827,-595.0,0.0001957,15]
[326579466,1715116261840,-334.0,0.0001957,15]
[326579467,1715116261851,-282.0,0.0001958,15]
[326579468,1715116261861,-595.0,0.0001958,15]
[326579469,1715116261871,-150.5,0.0001958,15]
[326579470,1715116261883,-334.0,0.0001958,15]
[326579471,1715116261893,-150.5,0.0001959,15]
[326579472,1715116261903,-595.0,0.0001959,15]
[326579473,1715116261915,-231.36,0.0001959,15]
[326579474,1715116261926,-595.0,0.000196,15]
[326579475,1715116261936,-334.0,0.000196,15]
[326579476,1715116261946,-762.63228045,0.000196,2]
[326579477,1715116261956,-595.0,0.0001961,15]
[326579478,1715116261967,-334.0,0.0001961,15]
[326579479,1715116261977,-595.0,0.0001962,15]